bitfinex/quotes_ETHUSD_20250706
["timestamp","ask_amount","ask_price","bid_price","bid_amount"]
[1751845176941,0.002,2572.5,2572.4,14.66882013]
[1751845179853,0.002,2572.5,2572.4,19.35882012]
[1751845181145,1e-08,2572.5,2572.4,25.79425665]
[1751845181351,0.05589131,2572.7,2572.6,14.68911809]
[1751845181551,0.05589131,2572.7,2572.6,31.5124471]
[1751845182245,0.001,2573.1,2573.0,3.88651379]
[1751845182427,0.001,2573.1,2573.0,11.81637892]
[1751845182629,0.001,2573.1,2573.0,13.85616213]
[1751845185650,0.001,2573.1,2573.0,29.72259866]
[1751845186453,0.001,2573.1,2573.0,24.63916213]
[1751845186635,0.001,2573.1,2573.0,16.74816213]
[1751845186839,0.001,2573.1,2573.0,26.56616213]
[1751845187031,0.0568913,2573.4,2573.2,0.7812]
[1751845187231,0.0568913,2573.4,2573.2,36.11281991]
[1751845187443,0.0568913,2573.4,2573.2,35.88426438]
[1751845189729,0.0568913,2573.4,2573.2,22.12962785]
[1751845189934,0.0568913,2573.4,2573.2,31.94562785]
[1751845190532,0.0568913,2573.4,2573.2,31.94462785]
[1751845191648,0.0568913,2573.4,2573.2,27.25462786]
[1751845191822,0.0568913,2573.4,2573.2,17.43962786]
[1751845192029,0.0568913,2573.4,2573.2,15.32762786]
[1751845193660,0.0568913,2573.4,2573.2,7.43962786]
[1751845193836,0.0568913,2573.4,2573.2,15.36648997]
[1751845194036,0.0568913,2573.4,2573.2,15.32762786]
[1751845194962,0.7663,2573.6,2573.1,11.926]
[1751845194963,0.0533682,2573.3,2573.1,11.926]
[1751845195137,0.0533682,2573.3,2573.2,7.888]
[1751845195337,0.8116682,2573.3,2573.2,7.888]
[1751845196036,0.8116682,2573.3,2573.2,7.887]
[1751845197643,0.8116682,2573.3,2573.0,3.88647279]
[1751845197845,0.8116682,2573.3,2573.1,7.92586362]
[1751845198041,0.8116682,2573.3,2573.1,7.887]
[1751845198243,0.8116682,2573.3,2573.2,7.887]
[1751845198741,0.8116682,2573.3,2572.9,4.68999999]
[1751845198946,0.8116682,2573.3,2572.9,12.57699999]
[1751845199678,0.8133,2573.2,2572.9,12.57699999]
[1751845200041,0.8656682,2573.2,2572.9,12.57699999]
[1751845201670,0.8656682,2573.2,2572.9,4.68999999]
[1751845201855,0.8656682,2573.2,2572.9,4.72886663]
[1751845203582,0.8656682,2573.2,2572.9,0.03886664]
[1751845208473,0.8656682,2573.2,2572.8,7.888]
[1751845208678,4.70936721,2573.1,2572.3,4.98907302]
[1751845208862,0.7751,2573.0,2572.3,5.81344704]
[1751845209063,0.7751,2573.0,2572.4,7.887]
[1751845209270,0.7751,2572.9,2572.4,7.887]
[1751845210376,1.29384242,2572.9,2572.4,7.888]
[1751845210878,1.29384242,2572.9,2572.4,11.775403]
[1751845211378,0.7933,2572.8,2572.4,3.887403]
[1751845211581,0.7933,2572.8,2572.2,3.88766801]
[1751845211771,0.7933,2572.8,2572.2,11.77566801]
[1751845211972,1.82151844,2572.8,2572.2,11.77566801]
[1751845212274,0.7933,2572.7,2572.3,0.03887571]
[1751845212471,0.7933,2572.7,2572.3,3.9263976]
[1751845213087,0.7996643,2572.7,2572.3,3.9263976]
[1751845213455,0.7996643,2572.7,2572.4,3.88741317]
[1751845214489,0.7996643,2572.7,2572.3,3.92641794]
[1751845215589,0.7996643,2572.7,2572.4,3.8873423]
[1751845216113,0.7996643,2572.7,2572.2,0.03887722]
[1751845216313,0.82169919,2572.6,2572.1,11.77583805]
[1751845216603,0.7739,2572.6,2572.3,3.88756644]
[1751845217295,0.7802643,2572.6,2572.3,3.88756644]
[1751845217902,0.7802643,2572.6,2572.1,11.77582637]
[1751845218071,0.7802643,2572.6,2572.1,11.77582774]
[1751845218603,0.7802643,2572.6,2572.2,3.88768241]
[1751845218780,0.7802643,2572.6,2572.1,11.77582362]
[1751845220202,0.7802643,2572.6,2572.1,3.88782362]
[1751845220979,0.7802643,2572.6,2572.0,0.001]
[1751845220980,3.88740046,2572.5,2572.0,0.001]
[1751845221200,0.8123,2572.3,2572.0,0.001]
[1751845221502,0.8123,2572.3,2572.0,3.88888216]
[1751845222603,0.8123,2572.3,2572.0,0.001]
[1751845224000,0.86009919,2572.3,2572.0,0.001]
[1751845224171,0.8123,2572.3,2572.0,0.001]
[1751845224373,1.33484162,2572.3,2572.0,0.001]
[1751845224916,0.8,2572.2,2572.0,0.001]
[1751845238034,0.04779919,2572.1,2572.0,0.001]
[1751845241047,0.8,2572.2,2572.0,0.001]
[1751845241207,3.88686949,2572.8,2572.0,0.001]
[1751845241208,10.7738,2572.7,2572.0,3.92788999]
[1751845241409,0.7738,2572.7,2572.1,3.88773196]
[1751845241728,0.7738,2572.7,2572.3,3.88747127]
[1751845243313,0.7738,2572.7,2572.2,5.07481623]
[1751845243657,4.66077491,2572.7,2572.2,0.39276122]
[1751845243831,4.66077491,2572.7,2572.1,3.88777703]
[1751845244232,0.05416349,2572.6,2572.1,3.88777703]
[1751845244433,0.05416349,2572.6,2572.0,3.92786272]
[1751845244611,4.66108028,2572.5,2572.0,0.03988024]
[1751845244813,0.04779919,2572.4,2572.0,0.001]
[1751845245014,0.7738,2572.3,2572.0,0.001]
[1751845245236,0.04779919,2572.2,2572.0,0.001]
[1751845246339,0.7738,2572.3,2572.0,0.001]
[1751845250449,0.7738,2572.3,2572.0,3.88892411]
[1751845250755,0.7738,2572.3,2572.0,0.001]
[1751845251630,0.7738,2572.3,2572.0,3.88897869]
[1751845252053,0.7738,2572.3,2572.0,0.001]
[1751845258957,0.82159919,2572.3,2572.0,0.001]
[1751845259250,1.29250202,2572.3,2572.0,0.001]
[1751845259464,5.18010375,2572.3,2572.0,0.001]
[1751845260957,1.29250202,2572.3,2572.0,0.001]
[1751845264562,1.24470283,2572.3,2572.0,0.001]
[1751845264757,0.7738,2572.3,2572.0,0.001]
[1751845265850,0.04779919,2572.2,2572.0,0.001]
[1751845269542,4.65918954,2572.3,2572.0,0.001]
[1751845269743,5.08343653,2572.1,2572.0,0.001]
[1751845269943,13.88786402,2572.2,2572.0,0.001]
[1751845270139,1.5812864,2572.1,2572.0,0.001]
[1751845270439,11.925,2572.3,2572.0,0.001]
[1751845272842,12.7297,2572.3,2572.0,0.001]
[1751845276772,12.7297,2572.3,2572.0,3.88902067]
[1751845276974,12.7297,2572.3,2572.0,0.001]
[1751845277549,15.23499853,2572.3,2572.0,0.001]
[1751845278278,15.23499853,2572.3,2572.0,3.8890228]
[1751845278468,2.7297,2572.3,2572.0,3.8890228]
[1751845278667,2.7297,2572.3,2572.0,0.001]
[1751845284984,2.7297,2572.3,2572.0,3.88900297]
[1751845285663,2.7317,2572.3,2572.0,3.88900297]
[1751845286880,1.927,2572.3,2572.0,3.88900297]
[1751845287102,1.927,2572.3,2572.2,3.88772257]
[1751845287103,0.002,2572.3,2572.2,3.88772257]
[1751845287394,0.002,2572.3,2572.2,4.69192257]
[1751845290262,0.002,2572.3,2572.2,3.88772257]
[1751845298907,0.002,2572.3,2572.1,3.88779521]
[1751845299101,0.002,2572.3,2572.2,3.88772257]
[1751845300787,0.002,2572.3,2572.1,3.8877769]
[1751845301095,0.002,2572.3,2572.0,0.001]
[1751845301096,5.90013653,2572.3,2572.0,0.001]
[1751845301614,10.33601025,2572.1,2572.0,0.001]
[1751845301912,16.44813653,2572.1,2572.0,0.001]
[1751845302983,20.33601025,2572.1,2572.0,0.001]
[1751845303410,11.3647,2572.1,2572.0,0.001]
[1751845310222,19.2477,2572.1,2572.0,0.001]
[1751845310388,22.12879156,2572.1,2572.0,0.001]
[1751845316226,26.01666528,2572.1,2572.0,0.001]
[1751845316404,22.12879156,2572.1,2572.0,0.001]
[1751845325450,26.01666528,2572.1,2572.0,0.001]
[1751845325615,22.12879156,2572.1,2572.0,0.001]
[1751845326099,26.01666528,2572.1,2572.0,0.001]
[1751845327337,22.12879156,2572.1,2572.0,0.001]
[1751845331848,26.01666528,2572.1,2572.0,0.001]
[1751845332743,22.12879156,2572.1,2572.0,0.001]
[1751845334145,26.01666528,2572.1,2572.0,0.001]
[1751845338051,26.01666528,2572.1,2571.9,0.001]
[1751845338052,14.43802488,2572.0,2571.9,1e-08]
[1751845338253,15.20803209,2571.4,2571.3,0.0139433]
[1751845338417,30.44860937,2571.4,2571.3,0.0139433]
[1751845339248,30.64525795,2571.4,2571.3,0.0139433]
[1751845339427,31.2352716,2571.4,2571.3,0.0139433]
[1751845341218,31.03862302,2571.4,2571.3,0.0139433]
[1751845342825,31.23106449,2571.4,2571.3,0.0139433]
[1751845343119,31.03862302,2571.4,2571.3,0.0139433]
[1751845343524,30.68448227,2571.4,2571.3,0.0139433]
[1751845343734,31.04338123,2571.4,2571.3,0.0139433]
[1751845344059,31.04338135,2571.4,2571.3,0.0139433]
[1751845345243,25.96094482,2571.4,2571.3,0.0139433]
[1751845345444,1.923,2571.4,2571.3,0.0139433]
[1751845345758,9.804,2571.4,2571.3,0.0139433]
[1751845345999,1.923,2571.4,2571.3,3.90302664]
[1751845346137,9.804,2571.4,2571.3,3.90302664]
[1751845346738,1.923,2571.4,2571.3,3.90302664]
[1751845346973,9.804,2571.4,2571.3,4.76008736]
[1751845348767,1.923,2571.4,2571.3,4.76008736]
[1751845350170,1.923,2571.4,2571.3,4.76108736]
[1751845350571,1.923,2571.4,2571.3,0.87200402]
[1751845350871,1.923,2571.4,2571.3,0.0149433]
[1751845351076,1.923,2571.4,2571.3,3.90402664]
[1751845352079,1.923,2571.4,2571.3,0.0149433]
[1751845352244,1.923,2571.4,2571.3,3.90402664]
[1751845352974,7.879,2571.6,2571.3,3.90402664]
[1751845353176,7.879,2571.6,2571.4,3.88885236]
[1751845353374,7.879,2571.6,2571.3,3.90398857]
[1751845355150,7.879,2571.6,2571.4,3.88889431]
[1751845356258,7.879,2571.6,2571.3,3.90397977]
[1751845361651,7.879,2571.6,2571.4,3.88888512]
[1751845361851,11.44251961,2572.0,2571.3,0.0149433]
[1751845361852,1.921,2571.9,2571.3,0.0149433]
[1751845362094,0.002,2572.1,2571.6,0.7596]
[1751845362393,7.88,2572.1,2571.8,3.88817896]
[1751845362691,7.88,2572.1,2571.9,3.88804915]
[1751845363378,0.002,2572.1,2572.0,3.88802488]
[1751845363757,0.002,2572.1,2571.9,3.88812051]
[1751845364687,0.002,2572.1,2572.0,4.64662488]
[1751845365582,0.002,2572.1,2572.0,5.50009942]
[1751845366278,0.002,2572.1,2572.0,4.64662488]
[1751845368860,0.002,2572.1,2572.0,4.68550512]
[1751845372656,0.002,2572.1,2572.0,4.64662488]
[1751845380967,0.002,2572.1,2572.0,3.88802488]
[1751845384677,0.002,2572.3,2572.2,3.88772257]
[1751845384883,0.002,2572.3,2572.2,11.56611523]
[1751845385081,0.002,2572.3,2572.2,11.52723801]
[1751845385884,0.002,2572.3,2572.2,6.44380148]
[1751845386092,0.002,2572.3,2572.2,6.4826787]
[1751845390705,0.002,2572.3,2572.2,11.56611523]
[1751845390870,0.002,2572.3,2572.2,11.52723801]
[1751845392910,0.002,2572.3,2572.2,19.39823801]
[1751845393078,1e-08,2572.3,2572.2,19.39823801]
[1751845395527,1e-08,2572.3,2572.2,36.007238]
[1751845396905,1e-08,2572.3,2572.2,31.31723801]
[1751845397119,1e-08,2572.3,2572.2,31.86723801]
[1751845401618,1e-08,2572.3,2572.2,36.557238]
[1751845418030,1e-08,2572.9,2572.8,3.88681592]
[1751845418218,1e-08,2572.9,2572.8,33.95222218]
[1751845418419,1e-08,2573.3,2573.2,3.88621172]
[1751845418727,1e-08,2573.3,2573.2,21.79107383]
[1751845418920,1e-08,2573.3,2573.2,21.75221172]
[1751845419303,0.8225,2573.7,2573.3,3.8860607]
[1751845419304,1e-08,2573.4,2573.3,3.8860607]
[1751845419503,1e-08,2573.4,2573.3,7.42728787]
[1751845420524,1e-08,2573.4,2573.3,17.42728787]
[1751845420937,1e-08,2573.4,2573.3,25.29328787]
[1751845422737,1e-08,2573.4,2573.3,25.58865373]
[1751845424311,1e-08,2573.4,2573.3,27.50465373]
[1751845424512,0.83190001,2573.4,2573.3,25.29228787]
[1751845425937,0.83190001,2573.4,2573.3,17.42728787]
[1751845426117,0.83190001,2573.4,2573.3,25.29228787]
[1751845427840,0.83190001,2573.4,2573.3,17.42728787]
[1751845428139,0.83190001,2573.4,2573.3,25.29228787]
[1751845428947,0.83190001,2573.4,2573.1,3.88635787]
[1751845429257,0.83190001,2573.4,2573.3,3.8860607]
[1751845430055,0.83190001,2573.4,2573.2,3.88615415]
[1751845430351,0.83190001,2573.4,2573.2,3.8862013]
[1751845430641,0.83190001,2573.4,2573.3,3.8860607]
[1751845432122,0.83190001,2573.4,2573.2,3.88615707]
[1751845433541,0.83190001,2573.4,2573.3,3.8860607]
[1751845434610,0.001,2573.8,2573.3,14.66329957]
[1751845434920,0.0422999,2574.4,2574.2,13.88470204]
[1751845435122,0.0422999,2574.4,2574.2,23.73170204]
[1751845435343,0.0422999,2574.4,2574.2,27.39018831]
[1751845435545,1e-08,2574.3,2574.2,28.16308831]
[1751845435744,1e-08,2574.3,2574.2,17.54318831]
[1751845435944,1e-08,2574.3,2574.2,7.54318831]
[1751845436247,1e-08,2574.3,2574.2,13.77854906]
[1751845436556,1e-08,2574.3,2574.2,13.73970204]
[1751845436910,1e-08,2574.3,2574.2,23.73970204]
[1751845440341,1e-08,2574.3,2574.2,24.54390204]
[1751845442652,1e-08,2574.3,2574.2,23.76370204]
[1751845442819,1e-08,2574.3,2574.2,27.53003599]
[1751845455730,1e-08,2574.3,2574.2,17.65103599]
[1751845455930,1e-08,2574.3,2574.2,27.51103599]
[1751845458634,1e-08,2574.3,2574.2,28.31523599]
[1751845462067,1e-08,2574.3,2574.2,28.5087581]
[1751845462649,1e-08,2574.3,2574.2,28.31523599]
[1751845462953,1e-08,2574.3,2574.2,18.45523599]
[1751845463147,1e-08,2574.3,2574.2,27.50503599]
[1751845475681,1e-08,2574.3,2574.2,17.65103599]
[1751845476255,1e-08,2574.3,2574.2,27.47703599]
[1751845476878,1e-08,2574.3,2574.2,17.65103599]
[1751845477082,1e-08,2574.3,2574.2,27.47703599]
[1751845485770,1e-08,2574.3,2574.2,27.46903599]
[1751845492590,1e-08,2574.3,2574.2,17.65103599]
[1751845492891,0.81460001,2574.3,2574.2,27.46203599]
[1751845493370,1e-08,2574.3,2574.2,27.46203599]
[1751845493891,1e-08,2574.3,2574.2,17.65103599]
[1751845494092,1e-08,2574.3,2574.2,23.69570204]
[1751845496291,1e-08,2574.3,2574.2,13.88470204]
[1751845496479,1e-08,2574.3,2574.2,23.69470204]
[1751845497501,1e-08,2574.3,2574.2,13.88470204]
[1751845497706,1e-08,2574.3,2574.2,23.69370204]
[1751845499186,1e-08,2574.3,2574.2,23.67970204]
[1751845500126,1e-08,2574.3,2574.1,0.001]
[1751845500274,0.8156,2574.2,2574.1,0.001]
[1751845500612,0.7641,2574.2,2574.1,0.001]
[1751845500974,1.74152781,2574.2,2574.1,0.001]
[1751845501389,0.7641,2574.2,2574.1,0.001]
[1751845501771,0.7641,2574.2,2574.1,3.88585295]
[1751845502201,0.7641,2574.2,2574.1,7.879]
[1751845502376,0.7641,2574.2,2574.1,0.001]
[1751845505915,4.64880204,2574.2,2574.1,0.001]
[1751845506087,2.12999503,2574.2,2574.1,0.001]
[1751845507783,6.01469707,2574.2,2574.1,0.001]
[1751845508010,11.0981336,2574.2,2574.1,0.001]
[1751845508482,6.01469707,2574.2,2574.1,0.001]
[1751845508682,2.12999503,2574.2,2574.1,0.001]
[1751845509515,6.01469707,2574.2,2574.1,0.001]
[1751845510708,2.12999503,2574.2,2574.1,0.001]
[1751845510907,0.7641,2574.2,2574.1,0.001]
[1751845511622,4.64880204,2574.2,2574.1,0.001]
[1751845512194,0.7641,2574.2,2574.1,0.001]
[1751845515112,4.64880204,2574.2,2574.1,0.001]
[1751845515920,10.28223857,2574.2,2574.1,0.001]
[1751845516125,11.70313356,2574.2,2574.1,0.001]
[1751845516417,6.61969703,2574.2,2574.1,0.001]
[1751845519344,0.7641,2574.2,2574.1,0.001]
[1751845519493,1e-08,2574.3,2574.1,0.001]
[1751845519833,1e-08,2574.3,2574.1,3.88584431]
[1751845521713,1e-08,2574.3,2574.2,3.88470204]
[1751845522225,1e-08,2574.3,2574.1,0.001]
[1751845522443,0.8154,2574.2,2574.1,0.001]
[1751845524793,5.29421568,2574.2,2574.1,0.001]
[1751845526808,1.40951364,2574.2,2574.1,0.001]
[1751845527731,5.29421568,2574.2,2574.1,0.001]
[1751845528231,20.90955221,2574.2,2574.1,0.001]
[1751845528423,21.27007298,2574.2,2574.1,0.001]
[1751845531837,20.72007298,2574.2,2574.1,0.001]
[1751845532746,21.27007298,2574.2,2574.1,0.001]
[1751845533723,29.14607298,2574.2,2574.1,0.001]
[1751845534468,29.14607298,2574.2,2573.2,0.83616211]
[1751845534636,29.14607298,2574.2,2573.1,0.001]
[1751845534637,4.66293051,2573.4,2573.1,0.001]
[1751845535651,3.88610807,2573.3,2573.1,0.001]
[1751845536219,3.88621172,2573.2,2573.1,0.001]
[1751845536524,4.69921172,2573.2,2573.1,0.001]
[1751845536739,1.1070916,2573.2,2573.1,0.001]
[1751845536921,11.76291246,2573.4,2573.1,0.001]
[1751845538214,3.88621172,2573.2,2573.1,0.001]
[1751845538914,4.66726093,2573.3,2573.1,0.001]
[1751845539114,1.76276975,2573.2,2573.1,0.001]
[1751845539723,5.64898147,2573.2,2573.1,0.001]
[1751845541344,1.76276975,2573.2,2573.1,0.001]
[1751845543660,0.7812,2573.3,2573.1,0.001]
[1751845547970,4.6672613,2573.3,2573.1,0.001]
[1751845548672,0.7812,2573.3,2573.1,0.001]
[1751845550960,4.66729864,2573.3,2573.1,0.001]
[1751845551632,0.7812,2573.3,2573.1,0.001]
[1751845552237,2.03560562,2573.3,2573.1,0.001]
[1751845555266,0.7812,2573.3,2573.1,0.001]
[1751845559760,10.0,2573.4,2573.1,0.001]
[1751845563369,10.0,2573.4,2573.1,3.88730936]
[1751845563838,10.0,2573.4,2573.1,0.001]
[1751845564170,11.46745098,2573.4,2573.1,0.001]
[1751845564469,7.874,2573.6,2573.2,0.7597]
[1751845565035,7.874,2573.6,2573.1,0.001]
[1751845565235,11.75971129,2573.6,2573.1,0.001]
[1751845565670,0.36112244,2573.5,2573.1,0.001]
[1751845565839,7.874,2573.6,2573.1,0.001]
[1751845566040,2.04541724,2573.5,2573.1,0.001]
[1751845566246,1.68429446,2573.5,2573.1,0.001]
[1751845569061,15.80816767,2573.9,2573.1,0.001]
[1751845569062,1.923,2573.9,2573.1,0.03986362]
[1751845569271,2.6989,2574.2,2573.4,3.88590969]
[1751845569462,0.36287231,2574.1,2573.7,4.68956111]
[1751845570157,0.002,2574.1,2573.7,4.68956111]
[1751845570676,0.002,2574.1,2573.7,0.8042]
[1751845570871,2.37007079,2574.1,2573.5,0.7699]
[1751845571071,3.18767079,2574.1,2573.5,4.65565618]
[1751845571272,7.0725533,2574.1,2573.5,0.7699]
[1751845572294,3.18767079,2574.1,2573.5,0.7699]
[1751845572492,0.002,2574.1,2573.6,3.88547239]
[1751845572701,0.002,2574.1,2573.5,0.80875758]
[1751845572995,3.88699532,2574.1,2573.5,4.69451408]
[1751845573197,0.002,2574.1,2573.5,4.69451408]
[1751845574596,0.002,2574.1,2573.6,3.885581]
[1751845574896,0.002,2574.1,2573.7,3.8854543]
[1751845575093,0.002,2574.1,2573.6,0.85802299]
[1751845575267,0.002,2574.1,2573.6,4.74357618]
[1751845576678,3.88688063,2574.1,2573.5,4.69447308]
[1751845576991,3.88500388,2574.0,2573.5,0.80875758]
[1751845577299,3.88500388,2574.0,2573.5,0.7699]
[1751845577797,4.68730196,2574.1,2573.5,0.7699]
[1751845578709,3.88501905,2574.0,2573.5,0.7699]
[1751845579000,4.68730465,2574.1,2573.5,0.7699]
[1751845579200,0.46873047,2574.0,2573.5,0.7699]
[1751845579593,4.35377982,2574.0,2573.5,0.7699]
[1751845579970,3.88515861,2573.9,2573.5,0.7699]
[1751845580489,4.35378238,2574.0,2573.5,0.7699]
[1751845581900,3.88517886,2573.9,2573.4,0.03885909]
[1751845582099,1.19029093,2573.8,2573.2,0.8042]
[1751845582272,5.07572967,2573.8,2573.2,0.8042]
[1751845583285,1.19029093,2573.8,2573.2,4.69037883]
[1751845583687,5.07561409,2573.8,2573.2,4.69037883]
[1751845584606,7.872,2574.0,2573.2,0.8042]
[1751845584812,11.75705992,2574.0,2573.3,3.92477719]
[1751845585108,11.75705992,2574.0,2573.3,3.87477719]
[1751845585411,0.03886077,2573.9,2573.3,3.91363779]
[1751845588299,0.03886077,2573.9,2573.4,3.88589006]
[1751845588502,0.8033,2574.1,2573.4,0.7673]
[1751845588797,0.002,2574.1,2573.5,3.88575869]
[1751845588997,0.002,2574.1,2573.6,0.03885607]
[1751845589197,0.002,2574.1,2573.7,0.7673]
[1751845589504,0.002,2574.1,2573.7,4.65273681]
[1751845591315,0.002,2574.1,2573.9,3.88515482]
[1751845591782,0.002,2574.1,2573.8,0.03885305]
[1751845591982,0.002,2574.1,2573.7,4.65269814]
[1751845594498,0.002,2574.1,2573.7,0.7673]
[1751845595609,0.002,2574.1,2573.7,4.65270984]
[1751845598288,0.002,2574.1,2573.8,3.88517477]
[1751845598496,0.002,2574.1,2573.7,5.51043042]
[1751845598823,0.002,2574.1,2573.7,4.65269943]
[1751845599519,0.002,2574.1,2573.8,3.88523855]
[1751845599682,0.002,2574.1,2573.7,0.7673]
[1751845600285,0.002,2574.1,2573.8,3.88520174]
[1751845602219,0.002,2574.1,2573.7,4.69160707]
[1751845603027,0.002,2574.1,2573.8,3.88516125]
[1751845604619,0.8349,2574.1,2573.7,0.80615456]
[1751845604795,0.8349,2574.1,2573.6,3.92436348]
[1751845605200,0.8349,2574.1,2573.7,3.88544123]
[1751845607905,0.8349,2574.1,2573.6,3.92446305]
[1751845607906,0.03886077,2574.0,2573.6,3.92446305]
[1751845608217,0.03886077,2574.0,2573.5,4.68982789]
[1751845608422,0.51471096,2574.0,2573.3,2.7242]
[1751845608629,3.88546631,2573.7,2573.3,0.001]
[1751845608829,0.81796077,2573.6,2573.3,0.001]
[1751845609225,1.34329133,2573.6,2573.3,0.001]
[1751845611146,5.22890768,2573.6,2573.3,0.001]
[1751845611847,3.88578908,2573.5,2573.3,0.001]
[1751845612149,0.03886077,2573.4,2573.3,0.001]
[1751845613008,10.37610699,2573.4,2573.3,0.001]
[1751845613216,24.91052865,2573.4,2573.3,0.001]
[1751845613542,30.86252865,2573.4,2573.3,0.001]
[1751845613907,31.22506392,2573.4,2573.3,0.001]
[1751845616146,14.3847177,2573.4,2573.3,0.001]
[1751845616344,21.89418243,2573.4,2573.3,0.001]
[1751845619618,25.78009212,2573.4,2573.3,0.001]
[1751845619818,26.14158393,2573.4,2573.3,0.001]
[1751845621948,25.78009212,2573.4,2573.3,0.001]
[1751845634254,21.89418243,2573.4,2573.3,0.001]
[1751845634562,20.52728243,2573.4,2573.3,0.001]
[1751845634859,17.873,2573.4,2573.3,0.001]
[1751845636223,7.873,2573.4,2573.3,0.001]
[1751845636826,1.919,2573.5,2573.3,0.001]
[1751845637059,7.91086077,2573.4,2573.3,0.001]
[1751845637255,7.872,2573.4,2573.3,0.001]
[1751845639866,9.37419639,2573.4,2573.3,0.001]
[1751845640044,30.06280435,2573.4,2573.3,0.001]
[1751845644570,29.70044261,2573.4,2573.3,0.001]
[1751845644735,30.06321884,2573.4,2573.3,0.001]
[1751845644931,13.22187262,2573.4,2573.3,0.001]
[1751845645267,20.28697262,2573.4,2573.3,0.001]
[1751845645971,8.23477623,2573.4,2573.3,0.001]
[1751845646292,7.872,2573.4,2573.3,0.001]
[1751845647283,0.55,2573.8,2573.3,4.6822154]
[1751845647284,10.0,2573.8,2573.3,4.6822154]
[1751845647564,8.2736419,2573.7,2573.3,0.7962]
[1751845647734,8.23478113,2573.7,2573.3,0.7962]
[1751845647938,0.03886077,2573.6,2573.3,0.7962]
[1751845648138,0.40162885,2573.6,2573.3,0.001]
[1751845648739,7.90986077,2573.6,2573.3,0.001]
[1751845648944,7.871,2573.6,2573.3,0.001]
[1751845649768,7.871,2573.6,2573.3,3.887001]
[1751845649957,7.871,2573.6,2573.4,4.64786782]
[1751845650162,1.919,2573.9,2573.4,0.762]
[1751845650366,8.27246077,2573.8,2573.4,0.762]
[1751845650556,7.871,2573.8,2573.4,0.762]
[1751845650974,1.919,2573.9,2573.4,0.762]
[1751845651140,9.79,2573.9,2573.6,3.88555752]
[1751845652340,1.919,2573.9,2573.6,3.88555752]
[1751845654289,8.421,2574.0,2573.6,3.88555752]
[1751845656311,0.04086077,2573.9,2573.6,3.88555752]
[1751845657493,0.04086077,2573.9,2573.4,0.762]
[1751845657690,0.04086077,2573.9,2573.4,4.64781412]
[1751845660970,2.06745025,2573.9,2573.4,0.762]
[1751845661170,5.95264079,2573.9,2573.3,0.001]
[1751845661702,5.95264079,2573.9,2573.3,3.88704]
[1751845661998,2.06745025,2573.9,2573.3,3.88704]
[1751845662359,2.06745025,2573.9,2573.4,3.88586929]
[1751845665892,0.83256077,2573.9,2573.4,3.88586929]
[1751845666102,0.04086077,2573.9,2573.5,0.8042]
[1751845668409,3.92602343,2573.9,2573.3,4.69122017]
[1751845669995,4.70772343,2573.9,2573.3,4.69122017]
[1751845670200,4.70772343,2573.9,2573.3,0.8052]
[1751845670401,1.31267234,2573.8,2573.3,4.69123609]
[1751845670571,0.03886077,2573.7,2573.3,4.69123609]
[1751845671397,0.03886077,2573.7,2573.3,0.8052]
[1751845672874,0.03886077,2573.8,2573.3,0.8052]
[1751845673998,0.03886077,2573.8,2573.4,3.8858729]
[1751845674200,0.03886077,2573.8,2573.4,3.88590969]
[1751845674399,0.04086077,2573.9,2573.4,3.88590969]
[1751845674605,0.04086077,2573.9,2573.3,5.16434025]
[1751845674806,0.04086077,2573.9,2573.4,3.88589905]
[1751845675186,0.40471314,2573.9,2573.4,3.88589905]
[1751845675707,0.40471314,2573.9,2573.3,5.16434404]
[1751845676108,0.40471314,2573.9,2573.4,3.88588932]
[1751845676599,0.40471314,2573.9,2573.3,5.20319437]
[1751845677779,0.65471314,2573.9,2573.4,3.8859087]
[1751845677979,0.29086077,2573.9,2573.4,3.8859087]
[1751845678281,0.36414079,2573.8,2573.3,5.16434708]
[1751845678477,0.03886077,2573.7,2573.3,5.16434708]
[1751845678684,0.03886077,2573.7,2573.3,1.27832396]
[1751845679084,0.03886077,2573.7,2573.3,0.8052]
[1751845679286,0.03886077,2573.7,2573.3,0.001]
[1751845679484,3.92437853,2573.7,2573.3,0.001]
[1751845679689,0.03886077,2573.7,2573.3,0.001]
[1751845680502,0.03886077,2573.7,2573.3,3.88703068]
[1751845680697,0.03886077,2573.7,2573.3,0.001]
[1751845681589,0.40315887,2573.7,2573.3,0.001]
[1751845681790,0.40315887,2573.7,2573.3,3.8870488]
[1751845681992,0.03886077,2573.7,2573.3,3.8870488]
[1751845682192,0.40314246,2573.7,2573.3,3.8870488]
[1751845682411,0.03886077,2573.7,2573.3,3.8870488]
[1751845682616,0.4031387,2573.7,2573.3,0.001]
[1751845683322,0.4031387,2573.7,2573.3,3.88703533]
[1751845683526,0.03886077,2573.7,2573.3,3.88703533]
[1751845683721,8.119,2573.9,2573.5,3.88563891]
[1751845684021,0.36427995,2573.8,2573.5,3.88563891]
[1751845684190,0.36427995,2573.8,2573.4,3.88587738]
[1751845684390,0.36427995,2573.8,2573.5,3.8857322]
[1751845685425,0.36427995,2573.8,2573.4,0.9305484]
[1751845685426,0.36427995,2573.8,2573.4,4.81644595]
[1751845686135,0.40314072,2573.8,2573.4,4.81644595]
[1751845686347,0.36427995,2573.8,2573.4,4.81644595]
[1751845687524,8.119,2573.9,2573.5,3.8857403]
[1751845687724,0.36431039,2573.8,2573.5,3.8857403]
[1751845687930,0.36431039,2573.8,2573.4,3.88585054]
[1751845688124,8.119,2573.9,2573.4,3.88585054]
[1751845688329,0.36431021,2573.8,2573.4,3.88585054]
[1751845690432,0.40317098,2573.8,2573.3,4.6769709]
[1751845690797,0.03886077,2573.8,2573.3,4.6769709]
[1751845690999,0.40319429,2573.8,2573.3,4.6769709]
[1751845692706,0.40319429,2573.8,2573.4,3.88586928]
[1751845693229,0.40319429,2573.8,2573.3,4.67697888]
[1751845694137,0.03886077,2573.8,2573.3,4.67697888]